[Event "*** Titled Tuesday Blitz"]
[Site "Chess.com"]
[Date "2021.02.16"]
[Round "1"]
[White "Fighter008"]
[Black "MariaFominykh"]
[Result "1-0"]
[WhiteElo "2587"]
[BlackElo "2273"]
[TimeControl "180+1"]
[EndTime "10:07:05 PST"]
[Termination "Fighter008 won on time"]

1. e4 {[%clk 0:03:00.5]} 1... e6 {[%clk 0:02:23.7]} 2. d4 {[%clk 0:02:56.6]}
2... d5 {[%clk 0:02:17.6]} 3. Bd3 {[%clk 0:02:55.3]} 3... dxe4 {[%clk 0:02:15]}
4. Bxe4 {[%clk 0:02:55.1]} 4... Nf6 {[%clk 0:02:13.9]} 5. Bf3 {[%clk 0:02:53.9]}
5... Be7 {[%clk 0:02:01.7]} 6. Nc3 {[%clk 0:02:51.1]} 6... O-O {[%clk
0:01:57.6]} 7. Nge2 {[%clk 0:02:50.5]} 7... c5 {[%clk 0:01:52.8]} 8. Bg5 {[%clk
0:02:47]} 8... cxd4 {[%clk 0:01:45.4]} 9. Qxd4 {[%clk 0:02:46.2]} 9... Qxd4
{[%clk 0:01:40.7]} 10. Nxd4 {[%clk 0:02:47.1]} 10... a6 {[%clk 0:01:25]} 11.
O-O-O {[%clk 0:02:45.6]} 11... Nbd7 {[%clk 0:01:23.3]} 12. Rhe1 {[%clk
0:02:43.2]} 12... Bb4 {[%clk 0:01:12.2]} 13. Bd2 {[%clk 0:02:35.4]} 13... Nb6
{[%clk 0:01:05.3]} 14. a3 {[%clk 0:02:33.4]} 14... Bc5 {[%clk 0:00:58.5]} 15.
Bg5 {[%clk 0:02:28.8]} 15... Nc4 {[%clk 0:00:40.3]} 16. Re2 {[%clk 0:02:15.8]}
16... Nd7 {[%clk 0:00:31.3]} 17. Nb3 {[%clk 0:02:13.4]} 17... Ba7 {[%clk
0:00:25.7]} 18. Be4 {[%clk 0:01:39.8]} 18... f6 {[%clk 0:00:22.9]} 19. Bh4
{[%clk 0:01:38.2]} 19... Nc5 {[%clk 0:00:16.7]} 20. Nxc5 {[%clk 0:01:36.6]}
20... Bxc5 {[%clk 0:00:17.6]} 21. Bg3 {[%clk 0:01:35.6]} 21... Kf7 {[%clk
0:00:13.3]} 22. Bd3 {[%clk 0:01:30.5]} 22... Nb6 {[%clk 0:00:11.7]} 23. h4
{[%clk 0:01:30.9]} 23... e5 {[%clk 0:00:10.9]} 24. Ne4 {[%clk 0:01:23.8]} 24...
Be7 {[%clk 0:00:09.5]} 25. f4 {[%clk 0:01:24.2]} 25... exf4 {[%clk 0:00:08]} 26.
Bxf4 {[%clk 0:01:23.7]} 26... Bg4 {[%clk 0:00:08.7]} 27. Nd6+ {[%clk 0:01:16.4]}
27... Bxd6 {[%clk 0:00:07.4]} 28. Bxd6 {[%clk 0:01:16.6]} 28... Bxe2 {[%clk
0:00:07.1]} 29. Bxe2 {[%clk 0:01:17.5]} 29... Rfd8 {[%clk 0:00:06.3]} 30. Bf3
{[%clk 0:01:17.8]} 30... Rd7 {[%clk 0:00:05.5]} 31. c4 {[%clk 0:01:15.1]} 31...
Rad8 {[%clk 0:00:06]} 32. c5 {[%clk 0:01:15.4]} 32... Nc8 {[%clk 0:00:06.1]} 33.
Bd5+ {[%clk 0:01:12.6]} 33... Kg6 {[%clk 0:00:05.7]} 34. Be6 {[%clk 0:01:12.9]}
34... Rxd6 {[%clk 0:00:05.2]} 35. cxd6 {[%clk 0:01:12.8]} 35... Nxd6 {[%clk
0:00:05]} 36. Kb1 {[%clk 0:01:12.3]} 36... b5 {[%clk 0:00:03.6]} 37. g4 {[%clk
0:01:11.5]} 37... h5 {[%clk 0:00:01.4]} 38. gxh5+ {[%clk 0:01:04.9]} 38... Kxh5
{[%clk 0:00:02.3]} 39. Rd4 {[%clk 0:01:05.6]} 39... Nb7 {[%clk 0:00:02.4]} 40.
Rf4 {[%clk 0:01:02.7]} 40... Rd6 {[%clk 0:00:02.4]} 41. Bf7+ {[%clk 0:01:01.7]}
41... Kh6 {[%clk 0:00:03]} 42. h5 {[%clk 0:00:59.8]} 42... g5 {[%clk 0:00:03]}
43. hxg6 {[%clk 0:00:59.4]} 43... Kg7 {[%clk 0:00:01.9]} 44. Rh4 {[%clk
0:00:59.4]} 44... Nc5 {[%clk 0:00:02]} 45. Rh7+ {[%clk 0:00:59.4]} 45... Kf8
{[%clk 0:00:02.2]} 46. Rh8+ {[%clk 0:00:59.9]} 46... Kg7 {[%clk 0:00:02.1]} 47.
Rc8 {[%clk 0:00:57.9]} 1-0

[Event "*** Titled Tuesday Blitz"]
[Site "Chess.com"]
[Date "2021.02.16"]
[Round "1"]
[White "volunteers1998"]
[Black "Squirlolz"]
[Result "0-1"]
[WhiteElo "2085"]
[BlackElo "2493"]
[TimeControl "180+1"]
[EndTime "10:07:05 PST"]
[Termination "Squirlolz won by resignation"]

1. e4 {[%clk 0:02:58.9]} 1... c5 {[%clk 0:02:58.7]} 2. Nf3 {[%clk 0:02:57.6]}
2... a6 {[%clk 0:02:58]} 3. d4 {[%clk 0:02:54.1]} 3... cxd4 {[%clk 0:02:58.9]}
4. Nxd4 {[%clk 0:02:52.4]} 4... e5 {[%clk 0:02:58.9]} 5. Nb3 {[%clk 0:02:48.8]}
5... Nf6 {[%clk 0:02:58.3]} 6. Nc3 {[%clk 0:02:40.8]} 6... Bb4 {[%clk
0:02:57.9]} 7. Bg5 {[%clk 0:02:36.7]} 7... Bxc3+ {[%clk 0:02:45.3]} 8. bxc3
{[%clk 0:02:34.5]} 8... Qc7 {[%clk 0:02:46.2]} 9. Bd3 {[%clk 0:02:27]} 9...
Qxc3+ {[%clk 0:02:36.7]} 10. Qd2 {[%clk 0:02:22.3]} 10... Qxd2+ {[%clk
0:02:36.1]} 11. Nxd2 {[%clk 0:02:19.5]} 11... d6 {[%clk 0:02:31.2]} 12. O-O
{[%clk 0:02:16.8]} 12... Nbd7 {[%clk 0:02:30.2]} 13. Nc4 {[%clk 0:02:09.1]}
13... Ke7 {[%clk 0:02:29.3]} 14. Ne3 {[%clk 0:02:03.7]} 14... Nb6 {[%clk
0:02:21.6]} 15. a4 {[%clk 0:01:56.7]} 15... Be6 {[%clk 0:02:20.6]} 16. a5 {[%clk
0:01:50.6]} 16... Nd7 {[%clk 0:02:20.9]} 17. Rab1 {[%clk 0:01:46.6]} 17... Nc5
{[%clk 0:02:21.1]} 18. f4 {[%clk 0:01:40.5]} 18... exf4 {[%clk 0:01:46.2]} 19.
Rxf4 {[%clk 0:01:34.6]} 19... Rac8 {[%clk 0:01:40.1]} 20. Nd5+ {[%clk
0:01:28.6]} 20... Bxd5 {[%clk 0:01:37.9]} 21. exd5 {[%clk 0:01:26.2]} 21... Rhe8
{[%clk 0:01:21.1]} 22. Bf5 {[%clk 0:01:14.5]} 22... Rc7 {[%clk 0:01:19]} 23.
Re1+ {[%clk 0:01:07.3]} 23... Kf8 {[%clk 0:01:19.1]} 24. Rxe8+ {[%clk
0:01:03.5]} 24... Nxe8 {[%clk 0:01:15.6]} 25. Bd8 {[%clk 0:00:56]} 25... g6
{[%clk 0:00:55.8]} 26. Bxc7 {[%clk 0:00:50]} 26... Nxc7 {[%clk 0:00:56.7]} 27.
Be4 {[%clk 0:00:43.7]} 27... Ke7 {[%clk 0:00:56.8]} 28. Bf3 {[%clk 0:00:40.8]}
28... f5 {[%clk 0:00:56.4]} 29. h4 {[%clk 0:00:37.9]} 29... Kf6 {[%clk
0:00:56.5]} 30. h5 {[%clk 0:00:36.4]} 30... Ke5 {[%clk 0:00:45.8]} 31. Rb4
{[%clk 0:00:31.2]} 31... g5 {[%clk 0:00:40.4]} 32. g3 {[%clk 0:00:28.7]} 32...
h6 {[%clk 0:00:39.4]} 33. Rb6 {[%clk 0:00:26.8]} 33... Nb5 {[%clk 0:00:30.9]}
34. c4 {[%clk 0:00:23.5]} 34... Nd4 {[%clk 0:00:27.8]} 35. Kg2 {[%clk
0:00:20.3]} 35... Ndb3 {[%clk 0:00:26.6]} 36. Bd1 {[%clk 0:00:17.9]} 36... Nxa5
{[%clk 0:00:26.8]} 37. Kf3 {[%clk 0:00:13.9]} 37... Nxc4 {[%clk 0:00:25.6]} 38.
Rb1 {[%clk 0:00:12.1]} 38... b5 {[%clk 0:00:25.4]} 39. Be2 {[%clk 0:00:10.2]}
39... Nd2+ {[%clk 0:00:25.6]} 0-1

[Event "*** Titled Tuesday Blitz"]
[Site "Chess.com"]
[Date "2021.02.16"]
[Round "1"]
[White "Yurovskykh_Oleksandr"]
[Black "niki_2003"]
[Result "1-0"]
[WhiteElo "2481"]
[BlackElo "2014"]
[TimeControl "180+1"]
[EndTime "10:07:05 PST"]
[Termination "Yurovskykh_Oleksandr won by checkmate"]

1. d4 {[%clk 0:03:00.5]} 1... Nf6 {[%clk 0:02:59.2]} 2. Nf3 {[%clk 0:03:00.5]}
2... e6 {[%clk 0:02:59]} 3. Bf4 {[%clk 0:03:00.3]} 3... d5 {[%clk 0:02:58.3]} 4.
e3 {[%clk 0:03:00.3]} 4... Bd6 {[%clk 0:02:57.5]} 5. Bg3 {[%clk 0:03:00.3]} 5...
O-O {[%clk 0:02:52.6]} 6. Nbd2 {[%clk 0:02:58.8]} 6... c6 {[%clk 0:02:43.5]} 7.
c4 {[%clk 0:02:57.5]} 7... Bc7 {[%clk 0:02:41.4]} 8. Bd3 {[%clk 0:02:56.3]} 8...
Nbd7 {[%clk 0:02:40.9]} 9. Qe2 {[%clk 0:02:54.7]} 9... Re8 {[%clk 0:02:37.4]}
10. Ne5 {[%clk 0:02:29.2]} 10... c5 {[%clk 0:02:24.7]} 11. O-O {[%clk
0:02:22.6]} 11... Nxe5 {[%clk 0:02:06]} 12. dxe5 {[%clk 0:02:20.7]} 12... Nd7
{[%clk 0:02:05.8]} 13. f4 {[%clk 0:02:05.9]} 13... f5 {[%clk 0:02:04.2]} 14.
cxd5 {[%clk 0:02:02.1]} 14... exd5 {[%clk 0:01:43.3]} 15. Bxf5 {[%clk 0:01:53]}
15... Nf8 {[%clk 0:01:43.7]} 16. Bxc8 {[%clk 0:01:43.6]} 16... Rxc8 {[%clk
0:01:42.4]} 17. e4 {[%clk 0:01:44]} 17... d4 {[%clk 0:01:40.4]} 18. Qc4+ {[%clk
0:01:39.1]} 18... Kh8 {[%clk 0:01:38.5]} 19. Nf3 {[%clk 0:01:39.7]} 19... a6
{[%clk 0:01:31.8]} 20. a4 {[%clk 0:01:39.4]} 20... Ng6 {[%clk 0:01:26.9]} 21.
Rad1 {[%clk 0:00:35.1]} 21... Bb6 {[%clk 0:01:20]} 22. Ng5 {[%clk 0:00:17.9]}
22... Nxe5 {[%clk 0:00:43]} 23. fxe5 {[%clk 0:00:12.7]} 23... Qxg5 {[%clk
0:00:42]} 24. Rf3 {[%clk 0:00:12.5]} 24... Rf8 {[%clk 0:00:38.4]} 25. Rdf1
{[%clk 0:00:11.7]} 25... Rxf3 {[%clk 0:00:36.6]} 26. Rxf3 {[%clk 0:00:12.6]}
26... h6 {[%clk 0:00:36.1]} 27. h3 {[%clk 0:00:10.4]} 27... Qd2 {[%clk
0:00:32.9]} 28. b3 {[%clk 0:00:09.8]} 28... Qb4 {[%clk 0:00:27.2]} 29. Qe6
{[%clk 0:00:09.3]} 29... Rc7 {[%clk 0:00:20.1]} 30. Qe8+ {[%clk 0:00:07.9]}
30... Kh7 {[%clk 0:00:20]} 31. Rf8 {[%clk 0:00:08.2]} 31... g5 {[%clk
0:00:14.8]} 32. Rh8+ {[%clk 0:00:06.9]} 32... Kg7 {[%clk 0:00:15.7]} 33. Qg8#
{[%clk 0:00:07.5]} 1-0

[Event "*** Titled Tuesday Blitz"]
[Site "Chess.com"]
[Date "2021.02.16"]
[Round "1"]
[White "Isajevsky_Anton"]
[Black "LamaChampetre"]
[Result "1-0"]
[WhiteElo "2541"]
[BlackElo "2217"]
[TimeControl "180+1"]
[EndTime "10:07:06 PST"]
[Termination "Isajevsky_Anton won on time"]

1. c4 {[%clk 0:03:00.9]} 1... g6 {[%clk 0:02:54.5]} 2. g3 {[%clk 0:02:59.8]}
2... Bg7 {[%clk 0:02:47.6]} 3. Bg2 {[%clk 0:03:00.4]} 3... c5 {[%clk 0:02:47.2]}
4. Nc3 {[%clk 0:02:59.8]} 4... Nc6 {[%clk 0:02:47.2]} 5. Rb1 {[%clk 0:02:59.6]}
5... e6 {[%clk 0:02:45.9]} 6. a3 {[%clk 0:02:59.5]} 6... Nge7 {[%clk 0:02:15.6]}
7. b4 {[%clk 0:02:58.6]} 7... cxb4 {[%clk 0:01:53.6]} 8. axb4 {[%clk 0:02:58.5]}
8... O-O {[%clk 0:01:51.5]} 9. Nf3 {[%clk 0:02:50.7]} 9... d5 {[%clk 0:01:48.9]}
10. b5 {[%clk 0:02:50.1]} 10... Na5 {[%clk 0:01:26]} 11. c5 {[%clk 0:02:07.3]}
11... a6 {[%clk 0:01:18.7]} 12. O-O {[%clk 0:01:59.8]} 12... axb5 {[%clk
0:01:17.2]} 13. Nxb5 {[%clk 0:01:59.2]} 13... Nc4 {[%clk 0:01:13.1]} 14. d3
{[%clk 0:01:54.8]} 14... Ne5 {[%clk 0:01:10.9]} 15. Nxe5 {[%clk 0:01:52.9]}
15... Bxe5 {[%clk 0:01:11.1]} 16. d4 {[%clk 0:01:53.8]} 16... Bg7 {[%clk
0:01:10.4]} 17. Bf4 {[%clk 0:01:45.4]} 17... Nf5 {[%clk 0:01:04.9]} 18. e3
{[%clk 0:01:43.8]} 18... Bd7 {[%clk 0:00:40.2]} 19. Nd6 {[%clk 0:01:40.9]} 19...
Ba4 {[%clk 0:00:17.3]} 20. Qe2 {[%clk 0:01:13.4]} 20... Bc6 {[%clk 0:00:12.5]}
21. Nxf5 {[%clk 0:01:12.4]} 21... gxf5 {[%clk 0:00:11.5]} 22. g4 {[%clk
0:00:21.4]} 22... fxg4 {[%clk 0:00:10.6]} 23. Qxg4 {[%clk 0:00:21.3]} 23... Qf6
{[%clk 0:00:09.7]} 24. Kh1 {[%clk 0:00:20.4]} 24... Qg6 {[%clk 0:00:09]} 25. Qh3
{[%clk 0:00:19.7]} 25... Ra2 {[%clk 0:00:04.5]} 26. Rg1 {[%clk 0:00:12.8]} 26...
Rxf2 {[%clk 0:00:02.9]} 27. Bf3 {[%clk 0:00:13]} 1-0

[Event "*** Titled Tuesday Blitz"]
[Site "Chess.com"]
[Date "2021.02.16"]
[Round "1"]
[White "juancruzarias"]
[Black "AsaHoffmann"]
[Result "1-0"]
[WhiteElo "2643"]
[BlackElo "2341"]
[TimeControl "180+1"]
[EndTime "10:07:07 PST"]
[Termination "juancruzarias won by resignation"]

1. d4 {[%clk 0:03:00.9]} 1... Nf6 {[%clk 0:02:55.1]} 2. Nf3 {[%clk 0:03:01.3]}
2... d6 {[%clk 0:02:54.2]} 3. c3 {[%clk 0:03:00.5]} 3... b6 {[%clk 0:02:52.2]}
4. Bg5 {[%clk 0:03:00.6]} 4... Nbd7 {[%clk 0:02:51.2]} 5. Nbd2 {[%clk
0:02:59.9]} 5... Bb7 {[%clk 0:02:48.2]} 6. e3 {[%clk 0:03:00.3]} 6... e5 {[%clk
0:02:47]} 7. Bc4 {[%clk 0:03:00.1]} 7... Be7 {[%clk 0:02:46.6]} 8. O-O {[%clk
0:03:00.1]} 8... O-O {[%clk 0:02:45.9]} 9. a4 {[%clk 0:03:00.2]} 9... a6 {[%clk
0:02:44.5]} 10. b4 {[%clk 0:02:59.4]} 10... c5 {[%clk 0:02:43.3]} 11. Qb3 {[%clk
0:02:55.4]} 11... cxd4 {[%clk 0:02:37.3]} 12. cxd4 {[%clk 0:02:52.1]} 12... Rc8
{[%clk 0:02:31.4]} 13. Rfc1 {[%clk 0:02:33.9]} 13... h6 {[%clk 0:02:28.4]} 14.
Bh4 {[%clk 0:02:33.4]} 14... exd4 {[%clk 0:02:27.1]} 15. exd4 {[%clk 0:02:28.3]}
15... Re8 {[%clk 0:02:21.8]} 16. Bxf7+ {[%clk 0:02:27.9]} 16... Kh8 {[%clk
0:02:18.9]} 17. Bxe8 {[%clk 0:02:27.5]} 17... Qxe8 {[%clk 0:02:18.8]} 18. Rxc8
{[%clk 0:02:27.7]} 18... Qxc8 {[%clk 0:02:17.2]} 19. Re1 {[%clk 0:02:27.9]}
19... Bd5 {[%clk 0:02:14.4]} 20. Qd3 {[%clk 0:02:22.5]} 20... Bd8 {[%clk
0:02:12.3]} 21. h3 {[%clk 0:02:13.5]} 21... a5 {[%clk 0:02:06.3]} 22. b5 {[%clk
0:02:09.5]} 22... Nf8 {[%clk 0:01:59.2]} 23. Bg3 {[%clk 0:02:07.5]} 23... Bc7
{[%clk 0:01:52.9]} 24. Nc4 {[%clk 0:01:52]} 24... Qd7 {[%clk 0:01:49.9]} 25.
Nfd2 {[%clk 0:01:49.1]} 25... Bf7 {[%clk 0:01:43.7]} 26. Ne3 {[%clk 0:01:44.8]}
26... Bg6 {[%clk 0:01:43.4]} 27. Qc4 {[%clk 0:01:43.2]} 27... Bd8 {[%clk
0:01:39]} 28. Qc6 {[%clk 0:01:38]} 28... Qe6 {[%clk 0:01:33.6]} 29. Qxd6 {[%clk
0:01:35.5]} 29... Be7 {[%clk 0:01:27.3]} 30. Qxe6 {[%clk 0:01:35.3]} 30... Nxe6
{[%clk 0:01:27.2]} 31. d5 {[%clk 0:01:30.2]} 31... Ng5 {[%clk 0:01:21.7]} 32.
Nec4 {[%clk 0:01:28.6]} 32... Bb4 {[%clk 0:01:20.8]} 33. d6 {[%clk 0:01:14.7]}
33... Bf5 {[%clk 0:01:16]} 34. Re7 {[%clk 0:01:05.4]} 34... Nd5 {[%clk
0:01:12.1]} 35. Re8+ {[%clk 0:01:04.8]} 35... Kh7 {[%clk 0:01:11.5]} 36. Nb3
{[%clk 0:01:00.5]} 36... Bc2 {[%clk 0:01:07.6]} 37. Nd4 {[%clk 0:00:57.4]} 37...
Nf6 {[%clk 0:01:04.5]} 38. Re7 {[%clk 0:00:54.3]} 38... Bd3 {[%clk 0:01:03.5]}
39. Nxb6 {[%clk 0:00:52.7]} 39... Bc5 {[%clk 0:01:01.8]} 40. Be5 {[%clk
0:00:31.7]} 40... Kg6 {[%clk 0:00:47.3]} 41. Nd7 {[%clk 0:00:30.5]} 41... Bb4
{[%clk 0:00:38.2]} 42. Nxf6 {[%clk 0:00:27.4]} 42... gxf6 {[%clk 0:00:37.9]} 43.
Bg3 {[%clk 0:00:25.7]} 43... Ne4 {[%clk 0:00:36.4]} 44. Rxe4 {[%clk 0:00:21.6]}
44... Bxe4 {[%clk 0:00:35.5]} 45. d7 {[%clk 0:00:22]} 45... Be7 {[%clk 0:00:33]}
46. Nc6 {[%clk 0:00:22.5]} 1-0

[Event "*** Titled Tuesday Blitz"]
[Site "Chess.com"]
[Date "2021.02.16"]
[Round "1"]
[White "anon102030"]
[Black "Manukyan_Artak"]
[Result "1-0"]
[WhiteElo "2719"]
[BlackElo "2384"]
[TimeControl "180+1"]
[EndTime "10:07:08 PST"]
[Termination "anon102030 won by resignation"]

1. e4 {[%clk 0:02:53.5]} 1... c6 {[%clk 0:02:58.9]} 2. Nc3 {[%clk 0:02:54.4]}
2... d5 {[%clk 0:02:53.8]} 3. d3 {[%clk 0:02:38]} 3... e5 {[%clk 0:02:51.9]} 4.
g3 {[%clk 0:02:36]} 4... Nf6 {[%clk 0:02:50.9]} 5. Bg2 {[%clk 0:02:36.2]} 5...
d4 {[%clk 0:02:49.2]} 6. Nce2 {[%clk 0:02:35.8]} 6... c5 {[%clk 0:02:39]} 7. f4
{[%clk 0:02:35.1]} 7... Ng4 {[%clk 0:02:34]} 8. h3 {[%clk 0:02:30.9]} 8... Ne3
{[%clk 0:02:33.4]} 9. Bxe3 {[%clk 0:02:30.6]} 9... dxe3 {[%clk 0:02:34.3]} 10.
Nf3 {[%clk 0:02:22.1]} 10... exf4 {[%clk 0:02:28]} 11. Nxf4 {[%clk 0:02:23]}
11... Nc6 {[%clk 0:02:22.1]} 12. c3 {[%clk 0:02:19]} 12... Bd6 {[%clk
0:02:19.6]} 13. Qe2 {[%clk 0:02:08.7]} 13... g5 {[%clk 0:02:17.5]} 14. Nh5
{[%clk 0:02:04.3]} 14... g4 {[%clk 0:01:57.7]} 15. hxg4 {[%clk 0:01:57.4]} 15...
Bxg4 {[%clk 0:01:58.6]} 16. Nf4 {[%clk 0:01:56.9]} 16... Bxf4 {[%clk 0:01:50.2]}
17. gxf4 {[%clk 0:01:57.8]} 17... Qb6 {[%clk 0:01:45.8]} 18. O-O-O {[%clk
0:01:52.3]} 18... O-O-O {[%clk 0:01:33.8]} 19. Qxe3 {[%clk 0:01:50.8]} 19... h5
{[%clk 0:01:33.9]} 20. Bh3 {[%clk 0:01:43.8]} 20... Kb8 {[%clk 0:01:31]} 21.
Bxg4 {[%clk 0:01:42.1]} 21... hxg4 {[%clk 0:01:31.9]} 22. Ng5 {[%clk 0:01:41.6]}
22... Qc7 {[%clk 0:01:03]} 23. e5 {[%clk 0:01:36]} 23... Ne7 {[%clk 0:00:52.2]}
24. Ne4 {[%clk 0:01:24.7]} 24... Nf5 {[%clk 0:00:48.4]} 25. Qxc5 {[%clk
0:01:04.6]} 25... Qxc5 {[%clk 0:00:45.7]} 26. Nxc5 {[%clk 0:01:05.5]} 26... g3
{[%clk 0:00:41.3]} 27. Rhg1 {[%clk 0:00:48.6]} 27... Rh2 {[%clk 0:00:32]} 28.
Ne4 {[%clk 0:00:45.1]} 28... Rg8 {[%clk 0:00:17.6]} 29. Rd2 {[%clk 0:00:40.2]}
29... Rg6 {[%clk 0:00:14.4]} 30. Ng5 {[%clk 0:00:31.9]} 30... f6 {[%clk
0:00:12.3]} 31. exf6 {[%clk 0:00:30.5]} 31... Rxf6 {[%clk 0:00:13.2]} 32. Rxh2
{[%clk 0:00:28.7]} 32... gxh2 {[%clk 0:00:13]} 33. Rh1 {[%clk 0:00:29.4]} 33...
Ng3 {[%clk 0:00:12.2]} 34. Rxh2 {[%clk 0:00:28.2]} 34... Rxf4 {[%clk 0:00:11.1]}
35. Rh8+ {[%clk 0:00:26.7]} 35... Kc7 {[%clk 0:00:11.4]} 36. Ne6+ {[%clk
0:00:27.2]} 1-0

[Event "*** Titled Tuesday Blitz"]
[Site "Chess.com"]
[Date "2021.02.16"]
[Round "1"]
[White "Artem_Sadovsky"]
[Black "Cuajada_Zero"]
[Result "1-0"]
[WhiteElo "2572"]
[BlackElo "2257"]
[TimeControl "180+1"]
[EndTime "10:07:10 PST"]
[Termination "Artem_Sadovsky won by checkmate"]

1. Nf3 {[%clk 0:03:00.9]} 1... d5 {[%clk 0:02:37.5]} 2. c4 {[%clk 0:03:00.8]}
2... e6 {[%clk 0:02:37.3]} 3. b3 {[%clk 0:02:58.2]} 3... Nf6 {[%clk 0:02:36.7]}
4. Bb2 {[%clk 0:02:51.8]} 4... Be7 {[%clk 0:02:36.8]} 5. e3 {[%clk 0:02:42.6]}
5... O-O {[%clk 0:02:36.2]} 6. Be2 {[%clk 0:02:42.5]} 6... c5 {[%clk 0:02:34.7]}
7. O-O {[%clk 0:02:42.9]} 7... Nc6 {[%clk 0:02:34.1]} 8. cxd5 {[%clk 0:02:42.9]}
8... exd5 {[%clk 0:02:35]} 9. d4 {[%clk 0:02:43.1]} 9... b6 {[%clk 0:02:31.6]}
10. Nc3 {[%clk 0:02:33.5]} 10... Bb7 {[%clk 0:02:30.4]} 11. Rc1 {[%clk
0:02:29.3]} 11... Rc8 {[%clk 0:02:25.5]} 12. dxc5 {[%clk 0:02:20.2]} 12... bxc5
{[%clk 0:02:24.5]} 13. Na4 {[%clk 0:02:20.8]} 13... Nb4 {[%clk 0:01:34]} 14. a3
{[%clk 0:02:13.4]} 14... Na6 {[%clk 0:01:32.3]} 15. Ne5 {[%clk 0:02:04.9]} 15...
Bd6 {[%clk 0:01:28.1]} 16. f4 {[%clk 0:01:49.1]} 16... Qe7 {[%clk 0:01:26.7]}
17. Bf3 {[%clk 0:01:48]} 17... Ne4 {[%clk 0:01:15.8]} 18. Bxe4 {[%clk 0:01:45]}
18... dxe4 {[%clk 0:01:16.7]} 19. Qg4 {[%clk 0:01:38.8]} 19... f6 {[%clk
0:01:10.2]} 20. Nc4 {[%clk 0:01:25.4]} 20... Bb8 {[%clk 0:01:03.2]} 21. Rfd1
{[%clk 0:01:08.2]} 21... Rcd8 {[%clk 0:00:59.8]} 22. Nc3 {[%clk 0:00:59.9]}
22... Rd3 {[%clk 0:00:48]} 23. h4 {[%clk 0:00:26.4]} 23... Rfd8 {[%clk
0:00:46.8]} 24. h5 {[%clk 0:00:27]} 24... h6 {[%clk 0:00:33.5]} 25. Kh2 {[%clk
0:00:22.5]} 25... Nc7 {[%clk 0:00:26.2]} 26. Na4 {[%clk 0:00:20.6]} 26... Ne6
{[%clk 0:00:21.2]} 27. Bc3 {[%clk 0:00:15.2]} 27... a6 {[%clk 0:00:16.1]} 28.
Nab2 {[%clk 0:00:14]} 28... Rxd1 {[%clk 0:00:15.2]} 29. Rxd1 {[%clk 0:00:14.9]}
29... Rxd1 {[%clk 0:00:12.8]} 30. Nxd1 {[%clk 0:00:15.8]} 30... Nf8 {[%clk
0:00:12.1]} 31. Nf2 {[%clk 0:00:13.3]} 31... Qe6 {[%clk 0:00:10.5]} 32. Qg3
{[%clk 0:00:09.2]} 32... f5 {[%clk 0:00:10.8]} 33. Qxg7# {[%clk 0:00:08]} 1-0

[Event "*** Titled Tuesday Blitz"]
[Site "Chess.com"]
[Date "2021.02.16"]
[Round "1"]
[White "xberli"]
[Black "WiktoriaPOL"]
[Result "1-0"]
[WhiteElo "2484"]
[BlackElo "2023"]
[TimeControl "180+1"]
[EndTime "10:07:10 PST"]
[Termination "xberli won by resignation"]

1. b3 {[%clk 0:02:58.9]} 1... e5 {[%clk 0:02:57.9]} 2. Bb2 {[%clk 0:02:58.4]}
2... Nc6 {[%clk 0:02:57.6]} 3. c4 {[%clk 0:02:56.6]} 3... d5 {[%clk 0:02:41.9]}
4. cxd5 {[%clk 0:02:57.5]} 4... Qxd5 {[%clk 0:02:41.6]} 5. Nc3 {[%clk
0:02:57.5]} 5... Qd7 {[%clk 0:02:35.7]} 6. g3 {[%clk 0:02:55.9]} 6... Nf6 {[%clk
0:02:35.2]} 7. Bg2 {[%clk 0:02:53.4]} 7... Bc5 {[%clk 0:02:27.1]} 8. Nf3 {[%clk
0:02:51]} 8... O-O {[%clk 0:02:25.2]} 9. d3 {[%clk 0:02:48.9]} 9... Re8 {[%clk
0:02:10.1]} 10. O-O {[%clk 0:02:47.2]} 10... b6 {[%clk 0:02:01.6]} 11. a3 {[%clk
0:02:34.9]} 11... a5 {[%clk 0:01:59.1]} 12. Rc1 {[%clk 0:02:20]} 12... Bb7
{[%clk 0:01:38.5]} 13. Na4 {[%clk 0:02:19.4]} 13... Bd6 {[%clk 0:01:31.9]} 14.
Nd2 {[%clk 0:02:18.9]} 14... Nd8 {[%clk 0:01:27.1]} 15. Ne4 {[%clk 0:02:12.1]}
15... Nxe4 {[%clk 0:01:24.4]} 16. dxe4 {[%clk 0:02:13]} 16... Nc6 {[%clk
0:01:14.4]} 17. e3 {[%clk 0:02:07.8]} 17... Red8 {[%clk 0:01:00.7]} 18. Qc2
{[%clk 0:02:05]} 18... Qe7 {[%clk 0:00:52.6]} 19. Ra1 {[%clk 0:02:02.9]} 19...
Na7 {[%clk 0:00:40.7]} 20. Nc3 {[%clk 0:01:58.7]} 20... Ba6 {[%clk 0:00:38.8]}
21. Rfd1 {[%clk 0:01:57.4]} 21... Nb5 {[%clk 0:00:38.7]} 22. Nd5 {[%clk
0:01:55.9]} 22... Qd7 {[%clk 0:00:25.1]} 23. h4 {[%clk 0:01:54.9]} 23... Rab8
{[%clk 0:00:12.2]} 24. Kh2 {[%clk 0:01:54.5]} 24... c6 {[%clk 0:00:10.3]} 25.
Bh3 {[%clk 0:01:53.9]} 25... Qb7 {[%clk 0:00:07.9]} 26. Nc3 {[%clk 0:01:51]}
26... Nxc3 {[%clk 0:00:06.2]} 27. Bxc3 {[%clk 0:01:51.9]} 27... Bc7 {[%clk
0:00:05.2]} 28. Qb2 {[%clk 0:01:51]} 28... Rxd1 {[%clk 0:00:04.1]} 29. Rxd1
{[%clk 0:01:51.9]} 29... f6 {[%clk 0:00:03.5]} 30. b4 {[%clk 0:01:48]} 30...
axb4 {[%clk 0:00:03.1]} 31. axb4 {[%clk 0:01:48.9]} 31... Bc4 {[%clk 0:00:02.2]}
32. Rd7 {[%clk 0:01:46]} 32... Rd8 {[%clk 0:00:02.3]} 33. Qd2 {[%clk 0:01:44.2]}
33... Qc8 {[%clk 0:00:01.4]} 34. Rxg7+ {[%clk 0:01:05.3]} 34... Kxg7 {[%clk
0:00:01.6]} 35. Bxc8 {[%clk 0:01:05.7]} 35... Rxd2 {[%clk 0:00:01.7]} 36. Bxd2
{[%clk 0:01:06.6]} 36... Bd6 {[%clk 0:00:01.5]} 37. Bb7 {[%clk 0:01:02.2]} 37...
c5 {[%clk 0:00:01.6]} 38. bxc5 {[%clk 0:01:01.9]} 38... Bxc5 {[%clk 0:00:02.1]}
39. Bd5 {[%clk 0:01:00.3]} 39... b5 {[%clk 0:00:02.2]} 40. Bxc4 {[%clk
0:00:59.6]} 40... bxc4 {[%clk 0:00:03.1]} 41. Kg2 {[%clk 0:00:59.5]} 41... Kf7
{[%clk 0:00:03.7]} 42. Kf3 {[%clk 0:00:58.9]} 42... Ke7 {[%clk 0:00:04.1]} 43.
Ke2 {[%clk 0:00:58.6]} 43... Kd6 {[%clk 0:00:04.4]} 44. Bc3 {[%clk 0:00:58.6]}
44... Kc6 {[%clk 0:00:04.9]} 45. f4 {[%clk 0:00:58.4]} 45... Kb5 {[%clk
0:00:05.3]} 46. fxe5 {[%clk 0:00:58.1]} 46... Bb4 {[%clk 0:00:05.4]} 47. Bxb4
{[%clk 0:00:56.5]} 47... Kxb4 {[%clk 0:00:05.5]} 48. exf6 {[%clk 0:00:56.8]}
48... c3 {[%clk 0:00:05.6]} 49. f7 {[%clk 0:00:57]} 49... Kb3 {[%clk 0:00:06]}
50. f8=Q {[%clk 0:00:57.1]} 50... c2 {[%clk 0:00:06.6]} 51. Qb8+ {[%clk
0:00:57.1]} 51... Ka2 {[%clk 0:00:06.6]} 52. Qc7 {[%clk 0:00:57]} 52... Kb2
{[%clk 0:00:06.9]} 53. Qxc2+ {[%clk 0:00:57.5]} 53... Kxc2 {[%clk 0:00:06.6]}
54. e5 {[%clk 0:00:58.4]} 54... Kc3 {[%clk 0:00:06.8]} 55. e6 {[%clk 0:00:59.3]}
1-0